[Event "Late-Titled-Tuesday-Blitz-December-26-2023"]
[Site "Chess.com"]
[Date "2023.12.26"]
[Round "4"]
[White "TanitoluwaAps116"]
[Black "ShahMatKanal"]
[Result "1-0"]
[WhiteElo "2757"]
[BlackElo "2528"]
[TimeControl "180+1"]
[EndTime "14:39:56 PST"]
[Termination "TanitoluwaAps116 won on time"]

1. e4 {[%clk 0:03:00.9]} 1... c5 {[%clk 0:02:57.1]} 2. Nf3 {[%clk 0:03:00.3]}
2... e6 {[%clk 0:02:56.6]} 3. c3 {[%clk 0:02:59.7]} 3... Nf6 {[%clk 0:02:52.1]}
4. e5 {[%clk 0:02:59.1]} 4... Nd5 {[%clk 0:02:52.2]} 5. Bc4 {[%clk 0:02:55.4]}
5... d6 {[%clk 0:02:48.4]} 6. d4 {[%clk 0:02:54.8]} 6... cxd4 {[%clk 0:02:47.7]}
7. cxd4 {[%clk 0:02:55.7]} 7... Be7 {[%clk 0:02:45.3]} 8. O-O {[%clk 0:02:55.1]}
8... O-O {[%clk 0:02:45]} 9. Qe2 {[%clk 0:02:53.1]} 9... Nc6 {[%clk 0:02:36.6]}
10. Rd1 {[%clk 0:02:51.3]} 10... Na5 {[%clk 0:02:25]} 11. Bb5 {[%clk 0:02:47.5]}
11... a6 {[%clk 0:02:20.1]} 12. Bd3 {[%clk 0:02:46.1]} 12... Nb4 {[%clk
0:02:17.1]} 13. Nc3 {[%clk 0:02:45.5]} 13... Nxd3 {[%clk 0:02:15.8]} 14. Rxd3
{[%clk 0:02:46.4]} 14... d5 {[%clk 0:01:57.6]} 15. h4 {[%clk 0:02:45.1]} 15...
b5 {[%clk 0:01:51.4]} 16. h5 {[%clk 0:02:28.5]} 16... b4 {[%clk 0:01:41.1]} 17.
Nd1 {[%clk 0:02:24.5]} 17... Nc4 {[%clk 0:01:35.4]} 18. h6 {[%clk 0:02:21.3]}
18... g6 {[%clk 0:01:35.7]} 19. Ne3 {[%clk 0:02:16.7]} 19... Nxe3 {[%clk
0:01:23.5]} 20. Qxe3 {[%clk 0:02:16.1]} 20... a5 {[%clk 0:01:23.7]} 21. Qf4
{[%clk 0:02:09.2]} 21... f5 {[%clk 0:01:18.1]} 22. exf6 {[%clk 0:02:08.1]} 22...
Rxf6 {[%clk 0:01:13.4]} 23. Qg3 {[%clk 0:01:54.7]} 23... Ba6 {[%clk 0:01:02.8]}
24. Re3 {[%clk 0:01:49.4]} 24... Qd6 {[%clk 0:00:47]} 25. Qg4 {[%clk 0:01:40.2]}
25... Rc8 {[%clk 0:00:40]} 26. Re1 {[%clk 0:01:21.8]} 26... Rf5 {[%clk
0:00:31.2]} 27. Bg5 {[%clk 0:01:11.2]} 27... Bf8 {[%clk 0:00:29.5]} 28. Nh4
{[%clk 0:00:49.2]} 28... Rf7 {[%clk 0:00:29.4]} 29. Rxe6 {[%clk 0:00:41.5]}
29... Qd7 {[%clk 0:00:29.5]} 30. Rae1 {[%clk 0:00:34.1]} 30... Bd3 {[%clk
0:00:29.5]} 31. Qg3 {[%clk 0:00:26.1]} 31... Be4 {[%clk 0:00:27.2]} 32. Rf6
{[%clk 0:00:15.4]} 32... Rxf6 {[%clk 0:00:25.6]} 33. Bxf6 {[%clk 0:00:16.3]}
33... Bxh6 {[%clk 0:00:25.9]} 34. f3 {[%clk 0:00:15.6]} 34... Bf5 {[%clk
0:00:21.2]} 35. Re7 {[%clk 0:00:15.2]} 35... Qa4 {[%clk 0:00:08.8]} 36. Nxf5
{[%clk 0:00:13.5]} 36... Qd1+ {[%clk 0:00:04.8]} 37. Kh2 {[%clk 0:00:13.5]}
37... Qc1 {[%clk 0:00:05.7]} 38. Nxh6+ {[%clk 0:00:04.3]} 38... Qxh6+ {[%clk
0:00:06.6]} 39. Qh3 {[%clk 0:00:05]} 39... Qxh3+ {[%clk 0:00:06.7]} 40. Kxh3
{[%clk 0:00:05.9]} 40... Rc2 {[%clk 0:00:05.9]} 41. Kg4 {[%clk 0:00:05.1]} 41...
h6 {[%clk 0:00:04.9]} 42. Kf4 {[%clk 0:00:05]} 42... Rxb2 {[%clk 0:00:04.3]} 43.
Rg7+ {[%clk 0:00:03.9]} 43... Kf8 {[%clk 0:00:03.7]} 44. Rxg6 {[%clk 0:00:03.9]}
44... Kf7 {[%clk 0:00:03.9]} 45. Rxh6 {[%clk 0:00:04.3]} 45... Rxa2 {[%clk
0:00:03.5]} 46. Kf5 {[%clk 0:00:04.8]} 46... a4 {[%clk 0:00:02.7]} 47. Rh7+
{[%clk 0:00:05]} 47... Kg8 {[%clk 0:00:01.6]} 48. Rg7+ {[%clk 0:00:04.1]} 48...
Kf8 {[%clk 0:00:01.3]} 49. Rb7 {[%clk 0:00:04.3]} 49... Rxg2 {[%clk 0:00:01.2]}
50. Ke6 {[%clk 0:00:03.4]} 1-0

[Event "Late-Titled-Tuesday-Blitz-December-26-2023"]
[Site "Chess.com"]
[Date "2023.12.26"]
[Round "4"]
[White "JohnWhite1952"]
[Black "GMJustin"]
[Result "0-1"]
[WhiteElo "1985"]
[BlackElo "2237"]
[TimeControl "180+1"]
[EndTime "14:39:56 PST"]
[Termination "GMJustin won on time"]

1. e4 {[%clk 0:03:00.9]} 1... c5 {[%clk 0:02:50.7]} 2. Nf3 {[%clk 0:03:00.6]}
2... d6 {[%clk 0:02:50.9]} 3. d4 {[%clk 0:03:01.2]} 3... cxd4 {[%clk 0:02:51.1]}
4. Nxd4 {[%clk 0:03:02.1]} 4... Nf6 {[%clk 0:02:51]} 5. Nc3 {[%clk 0:03:02.5]}
5... a6 {[%clk 0:02:51.4]} 6. Be3 {[%clk 0:03:01.8]} 6... Ng4 {[%clk 0:02:47.1]}
7. Bg5 {[%clk 0:02:59.8]} 7... h6 {[%clk 0:02:46.2]} 8. Bh4 {[%clk 0:02:59.3]}
8... g5 {[%clk 0:02:46.1]} 9. Bg3 {[%clk 0:02:59.8]} 9... Bg7 {[%clk 0:02:45.5]}
10. h3 {[%clk 0:02:58.2]} 10... Nf6 {[%clk 0:02:44.7]} 11. Bc4 {[%clk
0:02:56.9]} 11... Nc6 {[%clk 0:02:33.3]} 12. O-O {[%clk 0:02:49.1]} 12... Nxd4
{[%clk 0:02:08.3]} 13. Qxd4 {[%clk 0:02:48.3]} 13... Nh5 {[%clk 0:02:07.1]} 14.
Qd5 {[%clk 0:02:42.7]} 14... Be6 {[%clk 0:02:01]} 15. Qd3 {[%clk 0:02:32.9]}
15... Nxg3 {[%clk 0:01:57.2]} 16. fxg3 {[%clk 0:02:29.9]} 16... Bxc4 {[%clk
0:01:21.4]} 17. Qxc4 {[%clk 0:02:28.3]} 17... O-O {[%clk 0:01:22.1]} 18. Kh1
{[%clk 0:02:24.1]} 18... Rc8 {[%clk 0:01:14.4]} 19. Qb3 {[%clk 0:02:15.3]} 19...
b5 {[%clk 0:01:06.2]} 20. Nd5 {[%clk 0:02:07]} 20... e6 {[%clk 0:01:02.2]} 21.
Ne3 {[%clk 0:02:05.1]} 21... Qb6 {[%clk 0:00:52.7]} 22. Ng4 {[%clk 0:01:51.5]}
22... Qd4 {[%clk 0:00:46.1]} 23. Rad1 {[%clk 0:01:36.5]} 23... Qxe4 {[%clk
0:00:44.3]} 24. Nf6+ {[%clk 0:01:24]} 24... Bxf6 {[%clk 0:00:43.8]} 25. Rxf6
{[%clk 0:01:23.8]} 25... Rxc2 {[%clk 0:00:43.7]} 26. Rg1 {[%clk 0:01:05.6]}
26... Kg7 {[%clk 0:00:39.7]} 27. Rf3 {[%clk 0:01:00.7]} 27... Rfc8 {[%clk
0:00:37.6]} 28. Rgf1 {[%clk 0:00:56.7]} 28... R8c7 {[%clk 0:00:33.6]} 29. Qa3
{[%clk 0:00:53.1]} 29... Qe2 {[%clk 0:00:19.7]} 30. R3f2 {[%clk 0:00:45.5]}
30... Qxf2 {[%clk 0:00:16.1]} 31. Rxf2 {[%clk 0:00:42.9]} 31... Rxf2 {[%clk
0:00:16.6]} 32. Qxd6 {[%clk 0:00:39.9]} 32... Rcc2 {[%clk 0:00:13.1]} 33. Qd4+
{[%clk 0:00:34.7]} 33... Kg6 {[%clk 0:00:12.6]} 34. Qe4+ {[%clk 0:00:34.4]}
34... Kf6 {[%clk 0:00:11.8]} 35. Qd4+ {[%clk 0:00:33.4]} 35... Ke7 {[%clk
0:00:07.4]} 36. Qb4+ {[%clk 0:00:31.9]} 36... Ke8 {[%clk 0:00:06.7]} 37. Qe4
{[%clk 0:00:27.9]} 37... Rxg2 {[%clk 0:00:06]} 38. Qa8+ {[%clk 0:00:23.3]} 38...
Ke7 {[%clk 0:00:06.3]} 39. Qb7+ {[%clk 0:00:21.8]} 39... Kf6 {[%clk 0:00:05.7]}
40. Qxa6 {[%clk 0:00:19.2]} 40... Rgd2 {[%clk 0:00:05.1]} 41. Qb6 {[%clk
0:00:08.8]} 41... Rc1+ {[%clk 0:00:05]} 42. Qg1 {[%clk 0:00:08.6]} 42... Rxg1+
{[%clk 0:00:05.1]} 43. Kxg1 {[%clk 0:00:09.5]} 43... Rxb2 {[%clk 0:00:05.2]} 44.
a3 {[%clk 0:00:09.4]} 44... Ra2 {[%clk 0:00:05.6]} 45. Kf1 {[%clk 0:00:09.1]}
45... e5 {[%clk 0:00:05.2]} 46. h4 {[%clk 0:00:10]} 46... gxh4 {[%clk 0:00:05]}
0-1

[Event "Late-Titled-Tuesday-Blitz-December-26-2023"]
[Site "Chess.com"]
[Date "2023.12.26"]
[Round "4"]
[White "Genghis_K"]
[Black "Hikaru"]
[Result "0-1"]
[WhiteElo "2862"]
[BlackElo "3234"]
[TimeControl "180+1"]
[EndTime "14:39:58 PST"]
[Termination "Hikaru won by resignation"]

1. e4 {[%clk 0:02:47.4]} 1... c5 {[%clk 0:02:58.7]} 2. Nf3 {[%clk 0:02:47.5]}
2... Nc6 {[%clk 0:02:59.4]} 3. Bb5 {[%clk 0:02:47.2]} 3... e5 {[%clk 0:02:59.6]}
4. O-O {[%clk 0:02:44.2]} 4... Bd6 {[%clk 0:02:59.8]} 5. d4 {[%clk 0:02:44.7]}
5... Nxd4 {[%clk 0:02:55.2]} 6. Bc4 {[%clk 0:02:44.5]} 6... Bc7 {[%clk
0:02:53.2]} 7. Nxd4 {[%clk 0:02:17.5]} 7... cxd4 {[%clk 0:02:46.7]} 8. c3 {[%clk
0:02:17.9]} 8... Nf6 {[%clk 0:02:38.5]} 9. cxd4 {[%clk 0:02:14.4]} 9... O-O
{[%clk 0:02:37.1]} 10. dxe5 {[%clk 0:02:05.2]} 10... Bxe5 {[%clk 0:02:36.1]} 11.
f4 {[%clk 0:02:03]} 11... Qb6+ {[%clk 0:02:20.2]} 12. Kh1 {[%clk 0:02:01.9]}
12... Bxb2 {[%clk 0:02:20.3]} 13. Bxb2 {[%clk 0:02:01.5]} 13... Qxb2 {[%clk
0:02:21.2]} 14. Nd2 {[%clk 0:01:58.9]} 14... d5 {[%clk 0:02:21.4]} 15. exd5
{[%clk 0:01:32.1]} 15... Bg4 {[%clk 0:02:03]} 16. Qc1 {[%clk 0:01:25.4]} 16...
Qxc1 {[%clk 0:02:01.8]} 17. Rfxc1 {[%clk 0:01:23.2]} 17... Rfd8 {[%clk
0:01:58.1]} 18. Rab1 {[%clk 0:01:21.8]} 18... b6 {[%clk 0:01:57]} 19. h3 {[%clk
0:01:21.9]} 19... Bf5 {[%clk 0:01:55.9]} 20. Rb5 {[%clk 0:01:17]} 20... Bc8
{[%clk 0:01:34.3]} 21. Nf3 {[%clk 0:01:08.6]} 21... Ba6 {[%clk 0:01:29.7]} 22.
Rb3 {[%clk 0:01:08.5]} 22... Rac8 {[%clk 0:01:20.9]} 23. Rbc3 {[%clk 0:01:08.6]}
23... Bxc4 {[%clk 0:01:20.1]} 24. Rxc4 {[%clk 0:01:08.9]} 24... Rxc4 {[%clk
0:01:20.9]} 25. Rxc4 {[%clk 0:01:09.7]} 25... Nxd5 {[%clk 0:01:21.3]} 26. Ne5
{[%clk 0:01:07.3]} 26... f6 {[%clk 0:00:42.1]} 27. Nc6 {[%clk 0:01:03.1]} 27...
Rc8 {[%clk 0:00:41.5]} 28. Rd4 {[%clk 0:00:57.8]} 28... Rxc6 {[%clk 0:00:41.4]}
29. Rxd5 {[%clk 0:00:58.5]} 29... Rc7 {[%clk 0:00:41.6]} 30. a4 {[%clk
0:00:54.4]} 30... Kf7 {[%clk 0:00:38.8]} 31. a5 {[%clk 0:00:47.9]} 31... Ke6
{[%clk 0:00:38.3]} 32. Rh5 {[%clk 0:00:39.6]} 32... g6 {[%clk 0:00:37.1]} 33.
f5+ {[%clk 0:00:39.6]} 33... gxf5 {[%clk 0:00:36.6]} 34. axb6 {[%clk 0:00:38.5]}
34... axb6 {[%clk 0:00:37.5]} 35. Rh4 {[%clk 0:00:34.8]} 35... b5 {[%clk
0:00:37.5]} 36. Rb4 {[%clk 0:00:33.8]} 36... Rb7 {[%clk 0:00:37.8]} 37. Kh2
{[%clk 0:00:34.5]} 37... Kd6 {[%clk 0:00:37.6]} 38. Kg3 {[%clk 0:00:34.9]} 38...
Kc5 {[%clk 0:00:27.5]} 39. Rb1 {[%clk 0:00:35.3]} 39... b4 {[%clk 0:00:26.7]}
40. Kf4 {[%clk 0:00:36]} 40... b3 {[%clk 0:00:26.5]} 41. Kxf5 {[%clk 0:00:34.9]}
41... Rb6 {[%clk 0:00:27]} 42. Kg4 {[%clk 0:00:18.7]} 42... Kc4 {[%clk
0:00:20.1]} 43. Kh5 {[%clk 0:00:19.4]} 43... b2 {[%clk 0:00:20.1]} 44. Kh6
{[%clk 0:00:19.9]} 44... Rb7 {[%clk 0:00:20.5]} 45. g4 {[%clk 0:00:10.3]} 45...
Kc3 {[%clk 0:00:19.3]} 46. Rf1 {[%clk 0:00:06.4]} 46... Kd4 {[%clk 0:00:15.5]}
47. Rb1 {[%clk 0:00:04.8]} 47... Kd3 {[%clk 0:00:14.5]} 48. Rxb2 {[%clk
0:00:04]} 48... Rxb2 {[%clk 0:00:14.5]} 49. Kxh7 {[%clk 0:00:04.9]} 49... Ke4
{[%clk 0:00:14.8]} 50. Kg6 {[%clk 0:00:05.4]} 50... Rb6 {[%clk 0:00:14.7]} 51.
h4 {[%clk 0:00:03.3]} 51... f5+ {[%clk 0:00:15.1]} 52. Kg5 {[%clk 0:00:02.8]}
52... fxg4 {[%clk 0:00:13.1]} 53. Kxg4 {[%clk 0:00:03.7]} 53... Rg6+ {[%clk
0:00:13.2]} 54. Kh5 {[%clk 0:00:04.3]} 54... Rg8 {[%clk 0:00:13.8]} 55. Kh6
{[%clk 0:00:04.7]} 55... Kf5 {[%clk 0:00:14.4]} 56. h5 {[%clk 0:00:05.4]} 56...
Rh8+ {[%clk 0:00:14.1]} 0-1

[Event "Late-Titled-Tuesday-Blitz-December-26-2023"]
[Site "Chess.com"]
[Date "2023.12.26"]
[Round "4"]
[White "lukazz029"]
[Black "Flaccidmoves"]
[Result "1-0"]
[WhiteElo "2002"]
[BlackElo "2393"]
[TimeControl "180+1"]
[EndTime "14:40:01 PST"]
[Termination "lukazz029 won by checkmate"]

1. e4 {[%clk 0:03:00.9]} 1... Nf6 {[%clk 0:03:00.5]} 2. e5 {[%clk 0:02:59.6]}
2... Nd5 {[%clk 0:03:01.1]} 3. d4 {[%clk 0:02:57.1]} 3... d6 {[%clk 0:03:01]} 4.
Nf3 {[%clk 0:02:56.5]} 4... Bf5 {[%clk 0:03:01.4]} 5. Bd3 {[%clk 0:02:56.5]}
5... Bxd3 {[%clk 0:02:59.3]} 6. Qxd3 {[%clk 0:02:57.4]} 6... c6 {[%clk
0:02:51.2]} 7. O-O {[%clk 0:02:54.8]} 7... g6 {[%clk 0:02:49.8]} 8. Re1 {[%clk
0:02:53.8]} 8... Bg7 {[%clk 0:02:45.4]} 9. exd6 {[%clk 0:02:52.7]} 9... Qxd6
{[%clk 0:02:43.7]} 10. c3 {[%clk 0:02:48.4]} 10... O-O {[%clk 0:02:41.8]} 11.
Ne5 {[%clk 0:02:48.4]} 11... Nd7 {[%clk 0:02:40.4]} 12. f4 {[%clk 0:02:35.7]}
12... c5 {[%clk 0:02:30.3]} 13. Na3 {[%clk 0:02:22.6]} 13... cxd4 {[%clk
0:02:26.6]} 14. Nb5 {[%clk 0:02:18.8]} 14... Nxe5 {[%clk 0:02:18.3]} 15. fxe5
{[%clk 0:02:14]} 15... Qb6 {[%clk 0:02:14.9]} 16. Nxd4 {[%clk 0:02:01.3]} 16...
Rad8 {[%clk 0:02:10.3]} 17. a4 {[%clk 0:01:55]} 17... Nc7 {[%clk 0:02:07.2]} 18.
a5 {[%clk 0:01:52.4]} 18... Qc5 {[%clk 0:02:02.5]} 19. Qg3 {[%clk 0:01:42.8]}
19... Nd5 {[%clk 0:01:54.7]} 20. Kh1 {[%clk 0:01:42.2]} 20... e6 {[%clk
0:01:42.9]} 21. Bg5 {[%clk 0:01:38.3]} 21... Rd7 {[%clk 0:01:42.6]} 22. a6
{[%clk 0:01:34.8]} 22... b6 {[%clk 0:01:37.2]} 23. Qh4 {[%clk 0:01:26.8]} 23...
Qc4 {[%clk 0:01:07]} 24. Re4 {[%clk 0:01:21.2]} 24... Qd3 {[%clk 0:01:02.7]} 25.
Rae1 {[%clk 0:01:16.3]} 25... Qxa6 {[%clk 0:01:01.4]} 26. Bf6 {[%clk 0:01:14.1]}
26... Qd3 {[%clk 0:00:45.8]} 27. Nf3 {[%clk 0:00:47.6]} 27... h6 {[%clk
0:00:39.5]} 28. Rd4 {[%clk 0:00:40]} 28... Qf5 {[%clk 0:00:34.1]} 29. Bxg7
{[%clk 0:00:33.8]} 29... Kxg7 {[%clk 0:00:33.9]} 30. c4 {[%clk 0:00:34]} 30...
g5 {[%clk 0:00:21.6]} 31. Qg3 {[%clk 0:00:32.5]} 31... Rfd8 {[%clk 0:00:17.3]}
32. cxd5 {[%clk 0:00:32.1]} 32... Rxd5 {[%clk 0:00:18.2]} 33. Rxd5 {[%clk
0:00:31.5]} 33... Rxd5 {[%clk 0:00:19.1]} 34. h4 {[%clk 0:00:31.4]} 34... Kg6
{[%clk 0:00:19.3]} 35. hxg5 {[%clk 0:00:31]} 35... Qc2 {[%clk 0:00:17.6]} 36.
gxh6+ {[%clk 0:00:30.4]} 36... Kxh6 {[%clk 0:00:18]} 37. Qg5+ {[%clk 0:00:29.5]}
37... Kh7 {[%clk 0:00:18.2]} 38. Qh5+ {[%clk 0:00:26.8]} 38... Kg7 {[%clk
0:00:18.2]} 39. Ng5 {[%clk 0:00:26.8]} 39... Qg6 {[%clk 0:00:15.6]} 40. Qxg6+
{[%clk 0:00:26.5]} 40... Kxg6 {[%clk 0:00:16.5]} 41. Nf3 {[%clk 0:00:26.6]}
41... Rb5 {[%clk 0:00:15.8]} 42. Re2 {[%clk 0:00:26.5]} 42... a5 {[%clk
0:00:15.9]} 43. Kh2 {[%clk 0:00:26.6]} 43... a4 {[%clk 0:00:16.3]} 44. Kg3
{[%clk 0:00:26.9]} 44... Rb4 {[%clk 0:00:16.7]} 45. Kf2 {[%clk 0:00:26.3]} 45...
b5 {[%clk 0:00:17]} 46. Rc2 {[%clk 0:00:26.5]} 46... Rb3 {[%clk 0:00:17.1]} 47.
Rd2 {[%clk 0:00:26.2]} 47... b4 {[%clk 0:00:17.3]} 48. Ne1 {[%clk 0:00:25.8]}
48... a3 {[%clk 0:00:17.5]} 49. bxa3 {[%clk 0:00:25.9]} 49... bxa3 {[%clk
0:00:18.4]} 50. Nd3 {[%clk 0:00:24.2]} 50... Kf5 {[%clk 0:00:17.8]} 51. Ke2
{[%clk 0:00:24.3]} 51... Ke4 {[%clk 0:00:17.7]} 52. Nc5+ {[%clk 0:00:23.4]}
52... Kxe5 {[%clk 0:00:17.1]} 53. Nxb3 {[%clk 0:00:23.9]} 53... Kf4 {[%clk
0:00:17.9]} 54. Ra2 {[%clk 0:00:22.8]} 54... Kg3 {[%clk 0:00:18.8]} 55. Kf1
{[%clk 0:00:22.6]} 55... f5 {[%clk 0:00:18.7]} 56. Rxa3 {[%clk 0:00:23]} 56...
e5 {[%clk 0:00:19.2]} 57. Nd2+ {[%clk 0:00:23.1]} 57... Kg4 {[%clk 0:00:19.2]}
58. Nf3 {[%clk 0:00:23.4]} 58... e4 {[%clk 0:00:19.6]} 59. Nd4 {[%clk
0:00:23.9]} 59... f4 {[%clk 0:00:19.6]} 60. Kf2 {[%clk 0:00:24.4]} 60... e3+
{[%clk 0:00:19.7]} 61. Ke2 {[%clk 0:00:24.9]} 61... Kg3 {[%clk 0:00:20]} 62. Kf1
{[%clk 0:00:24.3]} 62... Kh2 {[%clk 0:00:19.8]} 63. Nf3+ {[%clk 0:00:22.9]}
63... Kh1 {[%clk 0:00:19.8]} 64. Ra1 {[%clk 0:00:17.1]} 64... e2+ {[%clk
0:00:19]} 65. Kf2+ {[%clk 0:00:17.2]} 65... e1=Q+ {[%clk 0:00:18.3]} 66. Rxe1#
{[%clk 0:00:17.4]} 1-0

[Event "Late-Titled-Tuesday-Blitz-December-26-2023"]
[Site "Chess.com"]
[Date "2023.12.26"]
[Round "4"]
[White "fks_stal_mielec"]
[Black "almaguerjm"]
[Result "0-1"]
[WhiteElo "2325"]
[BlackElo "2495"]
[TimeControl "180+1"]
[EndTime "14:40:02 PST"]
[Termination "almaguerjm won on time"]

1. c4 {[%clk 0:02:55.7]} 1... e5 {[%clk 0:02:58.1]} 2. Nc3 {[%clk 0:02:55]} 2...
Nc6 {[%clk 0:02:58.1]} 3. g3 {[%clk 0:02:55.1]} 3... Nf6 {[%clk 0:02:57.9]} 4.
Bg2 {[%clk 0:02:55.2]} 4... Bc5 {[%clk 0:02:57]} 5. e3 {[%clk 0:02:54.5]} 5...
O-O {[%clk 0:02:56.7]} 6. Nge2 {[%clk 0:02:54.6]} 6... Re8 {[%clk 0:02:56]} 7.
O-O {[%clk 0:02:54.5]} 7... d6 {[%clk 0:02:56.5]} 8. d4 {[%clk 0:02:54.4]} 8...
Bb6 {[%clk 0:02:56.8]} 9. b3 {[%clk 0:02:48.7]} 9... Bg4 {[%clk 0:02:54.5]} 10.
h3 {[%clk 0:02:30.6]} 10... exd4 {[%clk 0:02:41.8]} 11. hxg4 {[%clk 0:02:27.4]}
11... dxe3 {[%clk 0:02:32.7]} 12. f3 {[%clk 0:02:23]} 12... Ne7 {[%clk
0:02:11.5]} 13. Bb2 {[%clk 0:02:17.3]} 13... c6 {[%clk 0:02:10.2]} 14. Qc2
{[%clk 0:02:12.7]} 14... a5 {[%clk 0:02:02.7]} 15. Na4 {[%clk 0:02:08.3]} 15...
Ba7 {[%clk 0:02:01.8]} 16. Bxf6 {[%clk 0:02:05.7]} 16... gxf6 {[%clk 0:02:00.9]}
17. Rad1 {[%clk 0:02:02.5]} 17... b5 {[%clk 0:01:56.4]} 18. Nac3 {[%clk
0:01:54]} 18... bxc4 {[%clk 0:01:42.6]} 19. bxc4 {[%clk 0:01:52.7]} 19... Ng6
{[%clk 0:01:39]} 20. f4 {[%clk 0:01:36]} 20... Qd7 {[%clk 0:01:37.7]} 21. Bf3
{[%clk 0:01:35.3]} 21... Kg7 {[%clk 0:01:23.5]} 22. Kg2 {[%clk 0:01:34.8]} 22...
Rh8 {[%clk 0:01:16.3]} 23. Rh1 {[%clk 0:01:34.6]} 23... Rac8 {[%clk 0:01:12.7]}
24. Rh5 {[%clk 0:01:33.2]} 24... Rcd8 {[%clk 0:00:56.7]} 25. Qf5 {[%clk
0:01:29.5]} 25... Qe7 {[%clk 0:00:53.5]} 26. Bxc6 {[%clk 0:01:24.3]} 26... Rc8
{[%clk 0:00:52.7]} 27. Bd5 {[%clk 0:01:24]} 27... Rc5 {[%clk 0:00:52.9]} 28. Qe4
{[%clk 0:01:19.6]} 28... Qd8 {[%clk 0:00:48.5]} 29. Rdh1 {[%clk 0:01:10]} 29...
Rc7 {[%clk 0:00:47.9]} 30. g5 {[%clk 0:01:06.7]} 30... fxg5 {[%clk 0:00:43.6]}
31. Rxg5 {[%clk 0:01:02.9]} 31... Re7 {[%clk 0:00:43.6]} 32. Qf5 {[%clk
0:01:01.6]} 32... Qb8 {[%clk 0:00:38.5]} 33. Qc2 {[%clk 0:00:51.8]} 33... Kf8
{[%clk 0:00:36.2]} 34. Rgh5 {[%clk 0:00:50.7]} 34... Ke8 {[%clk 0:00:28.8]} 35.
Rxh7 {[%clk 0:00:50]} 35... Rxh7 {[%clk 0:00:28.7]} 36. Rxh7 {[%clk 0:00:50]}
36... Nf8 {[%clk 0:00:28.3]} 37. Rh8 {[%clk 0:00:47.7]} 37... Qb4 {[%clk
0:00:28.5]} 38. Qf5 {[%clk 0:00:41.7]} 38... Rd7 {[%clk 0:00:23.1]} 39. Qe4+
{[%clk 0:00:35.2]} 39... Re7 {[%clk 0:00:22.9]} 40. Qh7 {[%clk 0:00:33.5]} 40...
Bd4 {[%clk 0:00:19.8]} 41. Rg8 {[%clk 0:00:30.4]} 41... Bxc3 {[%clk 0:00:16.6]}
42. Bxf7+ {[%clk 0:00:19.8]} 42... Rxf7 {[%clk 0:00:16.4]} 43. Qe4+ {[%clk
0:00:19.9]} 43... Re7 {[%clk 0:00:16.5]} 44. Qa8+ {[%clk 0:00:19.8]} 44... Kd7
{[%clk 0:00:16.6]} 45. Qxf8 {[%clk 0:00:19.6]} 45... Qb7+ {[%clk 0:00:15.6]} 46.
Kg1 {[%clk 0:00:17.7]} 46... Bb4 {[%clk 0:00:11.3]} 47. Qf5+ {[%clk 0:00:16.3]}
47... Kc7 {[%clk 0:00:10.9]} 48. Nd4 {[%clk 0:00:13.2]} 48... Bc5 {[%clk
0:00:10.9]} 49. Nb5+ {[%clk 0:00:13.1]} 49... Kb6 {[%clk 0:00:11]} 50. Qb1
{[%clk 0:00:10.1]} 50... e2+ {[%clk 0:00:11.4]} 51. Kh2 {[%clk 0:00:07.2]} 51...
Rh7+ {[%clk 0:00:07.9]} 52. Qxh7 {[%clk 0:00:03.1]} 52... Qxh7+ {[%clk
0:00:08.8]} 53. Kg2 {[%clk 0:00:03.5]} 53... Qxg8 {[%clk 0:00:07.8]} 0-1